Cogmind - Beta 17 @@@ ROGUE MODE // 2026.06.30 @ 10:29:21 // Winter2019/RPGLIKE Player: Gallgagger Result: Destroyed by 8R-AWN with 8R-AWN's Boregun Performance ------------- Evolutions (0) 0 Regions Visited (3) 600 Robots Destroyed (52) 260 Value Destroyed (1474) 1474 Prototype IDs (23) 460 Alien Tech Used (0) 0 Bonus (353) 353 TOTAL SCORE: 3147 Bonus ------- High Alert Combat Kills 175 Follower Combat Kills 60 Aligned with FarCom 300 Friendly Fire -182 Cogmind --------- Core Integrity 0/1100 Matter 174/300 Energy 100/100 System Corruption 1% Temperature Cool (0) Movement Walking (90) Location -10/Exiles Parts ------- > --- POWER (1) -------- (None) > --- PROPULSION (2) --- Potential Leg Potential Leg > --- UTILITY (4) ------ Heat Sink Improved Terrain Scanner Backup Plating III > --- WEAPON (3) ------- Assault Rifle Assault Rifle Assault Rifle > --- INVENTORY (3) ---- (None) Peak State ------------ > --- POWER ------------ Light Ion Engine > --- PROPULSION ------- Potential Leg Potential Leg > --- UTILITY ---------- Heat Sink Improved Terrain Scanner Seismic Detector Backup Plating III > --- WEAPON ----------- Assault Rifle Assault Rifle Assault Rifle > --- INVENTORY -------- Nuclear Core Nuclear Core Light Fission Core [Rating: 33] Favorites ----------- Power Light Ion Engine Engine Light Ion Engine Propulsion Hover Unit Leg Potential Leg Wheel Wheel Hover Unit Hover Unit Utility Seismic Detector Device Seismic Detector Storage High-capacity Matter Pod Protection Backup Plating III Weapon Assault Rifle Energy Gun Medium Laser Ballistic Gun Assault Rifle Build | -11 -10 -10 -10 ------- Run | Yrd Mat Min Exi Slots Evolved 6 | 4 2 . . Power . | . . . . Propulsion 1 | 1 . . . Utility 3 | 2 1 . . Weapon 2 | 1 1 . . Parts Attached 17 | 8 7 . 2 Power 1 | 1 . . . Engine 1 | 1 . . . Core . | . . . . Reactor . | . . . . Propulsion 6 | 2 2 . 2 Treads . | . . . . Leg 2 | . . . 2 Wheel 2 | 2 . . . Hover 2 | . 2 . . Flight . | . . . . Utility 4 | 2 2 . . Device 3 | 2 1 . . Storage 1 | . 1 . . Processor . | . . . . Hackware . | . . . . Protection . | . . . . Artifact . | . . . . Weapon 6 | 3 3 . . Energy Gun 2 | 2 . . . Energy Cannon . | . . . . Ballistic Gun 4 | 1 3 . . Ballistic Cannon . | . . . . Launcher . | . . . . Special Weapon . | . . . . Impact Weapon . | . . . . Slashing Weapon . | . . . . Piercing Weapon . | . . . . Special Melee Weapon . | . . . . Unidentified Prototypes . | . . . . Parts Lost 2 | . . . 2 Power 1 | . . . 1 Propulsion . | . . . . Utility 1 | . . . 1 Weapon . | . . . . Highest Loss Streak 1 | . . . 1 To Critical Strikes 1 | . . . 1 Average Backups . | . . 1 1 Power . | . . . . Propulsion . | . . . . Utility . | . . . . Weapon . | . . 1 . Tool/Special . | . . . . Unused Backups 9 | . . . 9 Power 3 | . . . 3 Propulsion . | . . . . Utility 3 | . . . 3 Weapon 2 | . . . 2 Tool/Special 1 | . . . 1 Average Slot Usage (%) 94 | . 85 100 98 Engine 10 | . 11 10 9 Leg 3 | . . . 8 Wheel 3 | . 9 . . Hover 14 | . 13 20 11 Device 25 | . 19 30 29 Storage 1 | . 2 . . Protection 7 | . 2 10 10 Energy Gun 4 | . 10 . . Ballistic Gun 24 | . 15 30 30 Peak Build Rating 33 | 9 14 15 33 Average Rating 14 | 4 9 14 21 On Entrance 8 | . 6 14 15 Avg Prop Armor Cover (%) 12 | 12 12 . . Naked Turns . | . . . . Heaviest Build 15 | 8 15 14 14 Greatest Support 70 | 15 22 22 70 Greatest Overweight (x) . | . . . . Average Overweight (x) . | . . . . Largest Inventory Capacity 3 | 1 2 2 3 Average Capacity 2 | 1 1 2 2 Most Carried 3 | 1 2 2 3 Average Carried 1 | . 1 1 1 Final Capacity 3 | 1 2 2 3 Final Carried 2 | 1 2 2 . Class Distribution -------------------- 73% | Gunner 26% | Mutant Dominant Class ---------------- Mutant | -10/Materials Gunner | -10/Mines Gunner | -10/Exiles Resources | -11 -10 -10 -10 ----------- Run | Yrd Mat Min Exi Matter Collected 1564 | 260 616 325 363 Remotely . | . . . . Salvage Created 1636 | 27 1112 429 68 Parts 109 | 2 75 32 . Haulers Intercepted 1 | . 1 . . Recyclers Shooed . | . . . . Parts Field Recycled . | . . . . Retrieved Matter . | . . . . Parts Self-Destructed . | . . . . Prevented . | . . . . Parts Restored . | . . . . Kills | -11 -10 -10 -10 ------- Run | Yrd Mat Min Exi Combat Hostiles Destroyed 43 | . 31 8 4 Guns 43 | . 31 8 4 Classes Destroyed 8 | 1 6 . 1 Worker 4 | . 2 2 . Builder 2 | . 1 1 . Tunneler 4 | 1 1 2 . Hauler 1 | . 1 . . Watcher 1 | . 1 . . Swarmer 6 | . 3 3 . Grunt 33 | . 28 5 . Assembled 4 | . . . 4 Thug 1 | . . 1 . Best Kill Streak 6 | 1 6 3 4 Combat Bots Only 6 | . 6 3 4 Max Kills in Single Turn 2 | 1 1 2 1 Gunslinging 1 | . . 1 . Exploded . | . . . . Melee . | . . . . Uniques/NPCs Destroyed . | . . . . Combat | -11 -10 -10 -10 -------- Run | Yrd Mat Min Exi Hostile Shots Fired 236 | . 104 40 92 Missed 55 | . 25 12 18 Hits 181 | . 79 28 74 Melee 12 | . . . 12 Projectile 169 | . 79 28 62 Critical Strikes 21 | . . . 21 Damage Taken 2612 | . 907 317 1388 Core 2034 | . 734 235 1065 Absorbed by Shields . | . . . . Redirected to Core 1636 | . 525 212 899 Core Remaining (%) 100 | 100 . . . Volleys Fired 171 | 3 84 35 49 Largest 3 | 2 3 3 3 Hottest 90 | 70 90 60 60 Shots Fired 439 | 6 183 104 146 Gun 439 | 6 183 104 146 Cannon . | . . . . Launcher . | . . . . Special . | . . . . Kinetic 352 | 3 99 104 146 Thermal 87 | 3 84 . . Explosive . | . . . . Electromagnetic . | . . . . Robot Hit Streak 23 | 2 23 15 13 Robot Miss Streak 3 | 2 3 3 3 Penetration Max . | . . . . Secondary Targets 4 | . . 2 2 Max Gunslinging Chain 1 | . . 1 1 Shots Hit Robots 303 | 3 131 58 111 Core Hits 111 | 1 66 23 21 Critical Kills . | . . . . Critical Parts Destroyed 1 | . . . 1 Critical Strikes 12 | 1 10 . 1 Burn 11 | 1 10 . . Destroy 1 | . . . 1 Melee Attacks . | . . . . Impact . | . . . . Slashing . | . . . . Piercing . | . . . . Sneak Attacks . | . . . . Combat Hostiles . | . . . . Follow-up Attacks . | . . . . Damage Inflicted 3948 | 38 1729 811 1370 Guns 3948 | 38 1729 811 1370 Cannons . | . . . . Explosions . | . . . . Melee . | . . . . Ramming . | . . . . Kinetic 3002 | 25 796 811 1370 Thermal 946 | 13 933 . . Explosive . | . . . . Electromagnetic . | . . . . Impact . | . . . . Slashing . | . . . . Piercing . | . . . . Highest Corruption 1 | . 1 1 1 Average Corruption 1 | . 1 1 1 Corruption Purged . | . . . . Corruption Blocked . | . . . . Effects 14 | . 2 4 8 Message Errors 6 | . 1 1 4 Matter Fused 3 | . . 2 1 Heat Flow Errors 1 | . . . 1 Data Loss (minor) 1 | . . . 1 Data Loss (major) 1 | . 1 . . Weapon Failures 2 | . . 1 1 Overload Shots . | . . . . Overflow Damage . | . . . . Projectiles . | . . . . Explosions . | . . . . Melee . | . . . . Knockbacks . | . . . . Impact . | . . . . Kinetic . | . . . . Secondary . | . . . . Self-Inflicted Damage . | . . . . Shots . | . . . . Rammed . | . . . . Targets Rammed . | . . . . Kicked . | . . . . Crushed . | . . . . Highest Temperature 233 | . 8 . 233 Average Temperature 58 | . 4 . 140 Received Heat Transfer 621 | . 495 126 . Siege Activations . | . . . . Martial Activations . | . . . . Shielding Activations . | . . . . Robots Disrupted . | . . . . Combat Hostiles . | . . . . Robots Corrupted . | . . . . Combat Hostiles . | . . . . Parts Fried . | . . . . Impact Corruptions . | . . . . Robots Melted . | . . . . Combat Hostiles . | . . . . Parts Melted 9 | 1 8 . . Heat Transferred 3515 | 111 3404 . . Parts Sabotaged . | . . . . Parts Stolen . | . . . . Parts Stripped . | . . . . Power Chain Reactions . | . . . . Alert | -11 -10 -10 -10 ------- Run | Yrd Mat Min Exi Maximum Alert Level 3 | . 3 1 . Low Security (%) 18 | 100 25 . . Level 1 44 | . 12 100 . Level 2 22 | . 38 . . Level 3 14 | . 23 . . Level 4 . | . . . . Level 5 . | . . . . High Security . | . . . . Max Security . | . . . . Peak Influence 771 | 5 771 336 . Initial 291 | . . 291 . Average 379 | . 465 279 . Influence Increases 1408 | 5 1140 263 . Destroy 0b10 Robot/C 820 | . 620 200 . Destroy 0b10 Robot/NC 60 | 5 30 25 . Destroy Leader 174 | . 144 30 . Allied During Kill 8 | . . 8 . Successful Hack 28 | . 28 . . Select Force Hacks 210 | . 210 . . Destroy Structure 3 | . 3 . . Lose Combat Pursuer 105 | . 105 . . Influence Decreases 1408 | 5 393 758 252 Entered New Map 708 | . . 456 252 Time Decay 700 | 5 393 302 . Squads Dispatched 11 | . 10 1 . Investigation 9 | . 9 . . Extermination . | . . . . Reinforcement 1 | . 1 . . Assault 1 | . . 1 . Garrison . | . . . . Intercept . | . . . . Searches Triggered . | . . . . Construction Impeded . | . . . . Haulers Reinforced . | . . . . Active Scanning Responses . | . . . . Cargo Convoy Interrupts . | . . . . Stealth | -11 -10 -10 -10 --------- Run | Yrd Mat Min Exi Distress Signals 5 | . 5 . . Communications Jammed . | . . . . Distress Signals . | . . . . Times Spotted 65 | . 48 12 5 Peak Tracking Total 9 | . 8 4 9 Tactical Retreats 4 | . 4 . . Traps | -11 -10 -10 -10 ------- Run | Yrd Mat Min Exi Traps Triggered 1 | . 1 . . Indirectly . | . . . . Trap Hack Attempts . | . . . . Triggered . | . . . . Disarmed . | . . . . Reprogrammed . | . . . . Reused . | . . . . Traps Extracted . | . . . . Installed . | . . . . Triggered . | . . . . Machines | -11 -10 -10 -10 ---------- Run | Yrd Mat Min Exi Machines Disabled 5 | . . . 5 Max in Single Turn 1 | . . . 1 Machines Repaired . | . . . . Machines Dismantled . | . . . . Machines Sabotaged 3 | . 3 . . Overloaded Fab Kills . | . . . . Hacking | -11 -10 -10 -10 --------- Run | Yrd Mat Min Exi Machines Accessed 11 | . 10 . 1 Terminals 7 | . 7 . . Fabricators . | . . . . Repair Stations 1 | . 1 . . Recycling Units 2 | . 2 . . Scanalyzers . | . . . . Garrison Access . | . . . . Total Hacks 30 | . 29 . 1 Successful 14 | . 13 . 1 Failed 16 | . 16 . . Catastrophic 1 | . 1 . . Database Lockouts . | . . . . Manual 28 | . 27 . 1 Terminals 23 | . 23 . . Fabricators . | . . . . Repair Stations 3 | . 3 . . Recycling Units 3 | . 3 . . Scanalyzers . | . . . . Garrison Access . | . . . . Terminal Hacks 3 | . 2 . 1 Robot Analysis 2 | . 2 . . Proto ID Catalog 1 | . . . 1 Fabricator Hacks . | . . . . Repair Station Hacks 1 | . 1 . . Refit 1 | . 1 . . Recycling Unit Hacks . | . . . . Scanalyzer . | . . . . Garrison Access Hacks . | . . . . Unauthorized Hacks 10 | . 10 . . Terminals 8 | . 8 . . Botnet 3 | . 3 . . Sabotage 5 | . 5 . . Fabricators . | . . . . Repair Stations . | . . . . Recycling Units 2 | . 2 . . Tunnel 2 | . 2 . . Scanalyzers . | . . . . Garrison Access . | . . . . Data Cores Recovered . | . . . . Used . | . . . . Hacking Detections 8 | . 8 . . Full Trace Events 3 | . 3 . . Feedback Events 1 | . 1 . . Corruption 1 | . 1 . . Feedback Blocked . | . . . . Robot Schematics Acquired . | . . . . Robots Built . | . . . . Authchips . | . . . . Time . | . . . . Total Robot Build Rating . | . . . . Part Schematics Acquired . | . . . . Parts Built . | . . . . Authchips . | . . . . Time . | . . . . Total Part Build Rating . | . . . . Part Studies Acquired . | . . . . Parts Repaired . | . . . . Time . | . . . . Parts Recycled . | . . . . Recycled Matter . | . . . . Retrieved Matter . | . . . . Retrieved Components . | . . . . Parts Scanalyzed . | . . . . Part Schematics Acquired . | . . . . Parts Damaged . | . . . . Bothacking | -11 -10 -10 -10 ------------ Run | Yrd Mat Min Exi Used RIF Installer . | . . . . Robots Hacked . | . . . . Non-combat . | . . . . Combat . | . . . . Robot Hacks Applied . | . . . . Relay Couplers Released . | . . . . Fabnet Peak Effective % . | . . . . Robots Rewired . | . . . . Allies Hacked . | . . . . Hacks Repelled . | . . . . Allies | -11 -10 -10 -10 -------- Run | Yrd Mat Min Exi Total Allies 1 | . . 1 . Largest Group 1 | . . 1 . Highest-Rated Group 31 | . . 31 . Highest-Rated Ally 31 | . . 31 . Total Orders . | . . . . Ally Attacks 7 | . . 7 . Total Damage 83 | . . 83 . Kills 2 | . . 2 . Allies Corrupted . | . . . . Allies Melted . | . . . . Intel | -11 -10 -10 -10 ------- Run | Yrd Mat Min Exi Active Infowar (turns) 2770 | 30 1056 669 1015 Terrain 2356 | 4 668 669 1015 Seismic 2682 | 28 1056 669 929 Robot Analysis Total 2 | . 2 . . Derelict Logs Recovered 2 | . . 2 . Drone Launches . | . . . . Drone Recoveries . | . . . . Exploration | -11 -10 -10 -10 ------------- Run | Yrd Mat Min Exi Turns Passed 2804 | 64 1056 669 1015 Spaces Moved 2957 | 83 1162 622 1090 Core 494 | 80 414 . . Treads . | . . . . Legs 231 | . . . 231 Wheels 3 | 3 . . . Hover 2229 | . 748 622 859 Flight . | . . . . Fastest Speed 50 | 50 50 56 56 Average Speed 57 | 51 53 56 63 Slowest Speed 90 | 80 65 56 90 Overloaded Moves . | . . . . Propulsion Burnouts . | . . . . Robots Hopped . | . . . . Potential Cave-ins . | . . . . Cave-ins Triggered . | . . . . Exploration Rate (%) 67 | 3 99 98 71 Regions Visited 3 Branch Regions 2 Pre-discovered Areas 3 | . 2 1 . Known Exits Taken . | . . . . Unknown Exits Taken 3 | 1 1 1 . Scrap Searched 1 | . . 1 . Spaces Dug . | . . . . Terrain Destroyed . | . . . . Melee . | . . . . Projectile . | . . . . AOE . | . . . . Terrain Rammed . | . . . . Walls Destroyed . | . . . . Machines Disabled . | . . . . Actions | -11 -10 -10 -10 --------- Run | Yrd Mat Min Exi Total 3696 | 94 1418 864 1320 Wait 429 | . 113 189 127 Move 2954 | 82 1161 621 1090 Hop . | . . . . Pick Up 29 | . 3 2 24 Fast Attach 11 | 7 4 . . Attach 1 | . 1 . . Detach 2 | 1 1 . . Swap 7 | 1 4 . 2 Drop 32 | . 4 2 26 Fire 171 | 3 84 35 49 Melee . | . . . . Ram . | . . . . Kick . | . . . . Crush . | . . . . Escape Stasis . | . . . . Rewire . | . . . . Trap . | . . . . Miscellaneous 60 | . 43 15 2 Route ------- -11/Scrapyard -10/Materials (discovered 5 exits: [*Mat x3] / [*Min] / [*Sub]) -10/Mines (discovered 3 exits: [*Mat x2] / *Exi) -10/Exiles (discovered 1 exit: [*Min]) History --------- Turn | Location | Event 1 | -11/Scrapyard | Upgraded with Propulsion slot (x1) 1 | -11/Scrapyard | Upgraded with Utility slot (x2) 1 | -11/Scrapyard | Upgraded with Weapon slot (x1) 5 | -11/Scrapyard | Discovered new exit (range 16) 65 | -11/Scrapyard | Entered Materials 123 | -10/Materials | Discovered new exit (range 9) 263 | -10/Materials | Discovered new exit (range 14) 280 | -10/Materials | Discovered new exit (range 13) 313 | -10/Materials | Build established: Mutant 349 | -10/Materials | Reached level 2 389 | -10/Materials | Discovered new exit (range 11) 423 | -10/Materials | Discovered new exit (range 14) 449 | -10/Materials | Upgraded with Weapon slot (x1) 549 | -10/Materials | Reached level 3 929 | -10/Materials | Reached level 4 983 | -10/Materials | Upgraded with Utility slot (x1) 1048 | -10/Materials | Build established: Gunner 1121 | -10/Materials | Entered Mines 1122 | -10/Mines | Learned location of Storage (-7) 1129 | -10/Mines | Learned Materials trap positions 1157 | -10/Mines | Discovered new exit (range 5) 1293 | -10/Mines | Received a Rocket Launcher from a helpful Derelict 1306 | -10/Mines | Met a Derelict testing a Signal Generator 1311 | -10/Mines | Found Signal Generator 1463 | -10/Mines | Reached level 5 1552 | -10/Mines | Discovered new exit (range 7) 1745 | -10/Mines | Deemed a non-threat by the Exiles lab entrance 1745 | -10/Mines | Discovered new exit (range 5) 1790 | -10/Mines | Entered Exiles 1806 | -10/Exiles | Met 8R-AWN 1814 | -10/Exiles | Met EX-HEX 1830 | -10/Exiles | Met EX-BIN 1838 | -10/Exiles | Aligned with FarCom system 1838 | -10/Exiles | Given EX-Vault access code 1854 | -10/Exiles | Opened EX-Vault 1869 | -10/Exiles | Warned to stay clear of 0b10 Research branches 1886 | -10/Exiles | Met EX-DEC 1907 | -10/Exiles | Discovered new exit (range 11) 2195 | -10/Exiles | Found Potential Leg 2196 | -10/Exiles | Found Potential Leg 2198 | -10/Exiles | Found Field Lobotomy Kit 2301 | -10/Exiles | Found Firepult 2592 | -10/Exiles | Attacked by the Exiles 2656 | -10/Exiles | Core integrity fell below 50% 2695 | -10/Exiles | Core integrity fell below 20% 2805 | -10/Exiles | Destroyed by 8R-AWN with 8R-AWN's Boregun Last Messages --------------- 02772_ BLMZ3V8XJAYP>7E30&1QIOHI8TS 02773_ HV Slug penetrates Earth. 02777_ Penetrated by HV Slug. 02777_ HV Slug penetrates Earth. 02780_ Penetrated by HV Slug. 02780_ Critical hit (Destroy). 02780_ HV Slug penetrates Earth. 02784_ Penetrated by HV Slug. 02784_ HV Slug penetrates Earth. 02787_ Penetrated by HV Slug. 02787_ HV Slug penetrates Earth. 02791_ Penetrated by HV Slug. 02791_ HV Slug penetrates Earth. 02794_ Penetrated by HV Slug. 02794_ HV Slug penetrates Earth. 02798_ Penetrated by HV Slug. 02798_ HV Slug penetrates Earth. 02801_ Penetrated by HV Slug. 02801_ HV Slug penetrates Earth. 02805_ Penetrated by HV Slug. Map ----- +----------------------------------------------------+ | ?????????????????????????????????????????????????? | | ?????????????????????????????????????????????????? | | ??????????????##?????????????????????????????????? | | ????????####?????????????????????????????????????# | | ???????## ##???????????????????????????????????? | | ??????## ##??#?????#?????????????????????????? | | ?????#?# < #??#???????????#????????????????????? | | ???????# ###?????????????????????????????????? | | ??#????# |]#?????????#???????????????????????? | | ???????# ##????##?#?#???????????????????????# | | ???????## & #?????#??###??????#????#???????????? | | ?????#??# [##???#??###?#????##????????????????? | | ????????## #?????#?#????#######??????????????? | | ?????????# #######?###?##!!! "#?????#????????? | | ?????????# #""####???# "#?#????????????? | | ?????????## #??#?## "#??????????????? | | ?????????###" ##?#### ""#?###????????##? | | ????#?????#"" #####" " #??????#????? " | | ?????????##### ##" "#??##?###????" " | | ??????????#?### = #" ###??#?#?#?????" | | ??????????##?##"## = ##??#?###????#"" | | ??????????###?####### ;##????#????#?"" | | ?????????????####?#?### ####??#?#???? | | ?????#??#?##?######### ;;#?##????????" | | ?????#????#?#?# """" g ##?????????## | | ???????????#?##! %%@;##"" * ######???### | | ???????#??#?#?#! %! ####" """#####X# | | ??????????#???#! !!;;#?#" | | ??????????#??## !" "#;;####"# * | | ?????????????#######;##; #?##### | | ?????????????#???#?###? ####?###" | | ???????????#???##?##??# #?????#?### | | ????????##???#?#?#???? # ####?#???### | | ??????????????????#??? ## ##?#??###?### | | ????????????#???#?#??# ?? ##?###?##??###" | | ????????????????##?#? #?# ##??##??##?#?#""" | | ??????????????#??###? ??? ##?##????#?###" | | ????????????????#?#?# ?#?#?#?#????????#"" | | ?????????#?#???????? #????#??#????#??##""" | | ????????????????##?? ???#?????#?#?#??#""" | | ???????????????????? ????#??#??#?????#""" | | ????????????????????#?#?????##?????#?#"" | | ????????????????????##??##???????????#""" | | ???????????????????????????????????#?#"" | | ????????????????????????????????????###"" | | ?????????????????????????????????????##"""" | | ??????????????????????????????????????## | | ???????????????????????????????????????#" | | ???????????????????????????????????????#"""" | | ???????????????????????????????????????#"" | +----------------------------------------------------+ Best States ------------- Heat Dissipation 71 Energy Generation 15 Energy Capacity 125 Matter Stores 500 Matter Capacity 500 Sight Range 16 Terrain Scan Range 16 Terrain Scan Density 10 Armor Coverage 80 Evasion (%) 57 Item Schematics ----------------- None Robot Schematics ------------------ None Fabricated ------------ Nothing Repaired ---------- Nothing Studied --------- None Alien Tech Used ----------------- None Achievements -------------- Fitting Room Challenges ------------ None RPGLIKE | -11 -10 -10 -10 --------- Run | Yrd Mat Min Exi Levels Raised 4 | . 3 1 . XP Earned 9729 | 3000 5004 1482 243 XP Spent 8900 | 2970 4480 . 1450 Upgrades 30 | 10 9 . 11 Propulsion Slot 1 | 1 . . . Utility Slot 3 | 2 1 . . Weapon Slot 2 | 1 1 . . Core Integrity 10 | . . . 10 Heat Dissipation 6 | 4 2 . . Energy Generation 1 | . 1 . . Mass Support 2 | 1 1 . . Inventory Capacity 3 | 1 1 . 1 Ranged Accuracy 2 | . 2 . . Protomatter Created 546 | . 470 67 9 Integrity Restored 1133 | . 830 276 27 Core 930 | . 670 233 27 Parts 203 | . 160 43 . Protomatter Decayed 189 | . 182 . 7 Game ------ Seed TowerAnalysisPit Manual? 0 Play Time 00:21:41 Cumulative 632.0 hours Start 2026.06.30 @ 10:06:35 End 2026.06.30 @ 10:29:21 Sessions 1 Manual Loads 0 Difficulty Rogue Special Mode Winter2019/RPGLIKE Game No. 247 Rogue 93 Adventurer 154 Explorer 0 Win Type - Total 21 Types 4/4/4/3/2/1/0/1/1/1 Lore% 95 Gallery% 87 Achievement% 61 Wizard Run 0 Options --------- Layout 0 ASCII 0 Keyboard 0 Movement Numpad Keybinds 0 Fullscreen 2 Font 18/SmallcapsGlow Map View 76x50 Zoom Use 0% Tactical HUD 1 Map Filters NONE Filters NONE Steam 1 RUN: d9dee63b-91f6-4217-ae8f-e12da7013f41